fUST/lending_fUST_20251230
["ID","MTS","AMOUNT","RATE_DAILY","PERIOD"]
[400024198,1767034240931,-250.3,0.00023854,2]
[400024199,1767034240942,-5863.5180777,0.0002386,2]
[400024200,1767034240952,-1984.534635,0.000239,2]
[400024201,1767034240962,-3481.56,0.000239,3]
[400024202,1767034240972,-8697.605976,0.00023935,2]
[400024203,1767034240982,-1541.6790907,0.00023941,2]
[400024204,1767034240992,-3424.49824,0.00023941,2]
[400024205,1767034241002,-46241.6960978,0.00023941,2]
[400024206,1767034241011,-151.0,0.00023941,2]
[400024207,1767034241022,-244.498218,0.00023941,2]
[400024208,1767034241033,-244.498218,0.00023941,2]
[400024209,1767034241043,-244.498218,0.00023941,2]
[400024210,1767034241053,-244.498218,0.00023941,2]
[400024211,1767034241062,-258.103568,0.00023941,2]
[400024212,1767034241072,-151.0,0.00023941,2]
[400024213,1767034241084,-151.0,0.00023941,2]
[400024214,1767034241094,-500.0,0.00023958,2]
[400024215,1767034241106,-308.0,0.00023973,11]
[400024216,1767034241118,-151.0,0.0002399,2]
[400024217,1767034241128,-151.0,0.0002399,2]
[400024218,1767034241138,-131759.27943294,0.00023998,2]
[400024219,1767034241147,-151.0,0.00023998,2]
[400024220,1767034241158,-151.0,0.00023998,2]
[400024221,1767034241168,-151.0,0.00023998,2]
[400024222,1767034241179,-244.498218,0.00023998,2]
[400024223,1767034241189,-244.498218,0.00023998,2]
[400024224,1767034241198,-244.498218,0.00023998,2]
[400024225,1767034241209,-244.498218,0.00023998,2]
[400024226,1767034241218,-151.0,0.00023998,2]
[400024227,1767034241227,-222.674962,0.00023998,2]
[400024228,1767034241237,-207.772071,0.00023998,2]
[400024229,1767034241247,-1000.0,0.00023998,2]
[400024230,1767034241257,-1000.0,0.00023998,2]
[400024231,1767034241266,-1000.0,0.00023998,2]
[400024232,1767034241275,-1000.0,0.00023998,2]
[400024233,1767034241284,-389.18490564,0.00023998,2]
[400024234,1767034241293,-3067.48599276,0.00024,3]
[400024235,1767034241302,-766.92201531,0.00024,7]
[400024236,1767034241312,-234.74,0.00024,2]
[400024237,1767034241324,-151.0,0.00024,9]
[400024238,1767034241334,-10921.4,0.00024,2]
[400024239,1767034241343,-2398.71,0.00024,14]
[400024240,1767034241353,-151.0,0.00024,5]
[400024241,1767034241362,-428.0,0.00024,2]
[400024242,1767034241371,-1169.1097308,0.00024042,2]
[400024243,1767034241382,-595.37131296,0.00024064,2]
[400024244,1767034241392,-2876.18991768,0.00024064,2]
[400024245,1767034241402,-10585.06723534,0.00024073,7]
[400024246,1767034241414,-2723.58340512,0.00024109,2]
[400024247,1767034241436,-200.0,0.00024109,2]
[400024248,1767034241446,-500.0,0.00024109,2]
[400024249,1767034241455,-500.0,0.00024109,2]
[400024250,1767034241466,-500.0,0.00024109,2]
[400024251,1767034241476,-939.52,0.00024109,2]
[400024252,1767034241486,-528.70018131,0.00024109,2]
[400024253,1767034241496,-5143.59,0.00024109,2]
[400024254,1767034241507,-500.0,0.00024109,2]
[400024255,1767034241516,-500.0,0.00024109,2]
[400024256,1767034241525,-973.05,0.00024109,2]
[400024257,1767034241535,-895.41,0.00024109,2]
[400024258,1767034241545,-500.0,0.00024109,2]
[400024259,1767034241554,-500.0,0.00024109,2]
[400024260,1767034241565,-500.0,0.00024109,2]
[400024261,1767034241575,-625.33,0.00024109,2]
[400024262,1767034241586,-1043.74,0.00024109,2]
[400024263,1767034241595,-1152.39,0.00024109,2]
[400024264,1767034241606,-22912.73715291,0.00024142,2]
[400024265,1767034241717,-909.89849596,0.00024142,2]
[400024266,1767034241728,-446.03775753,0.00024142,2]
[400024267,1767034241740,-455.70417096,0.00024142,2]
[400024268,1767034241752,-554.58286843,0.00024142,2]
[400024269,1767034241763,-1316.91553916,0.00024142,2]
[400024270,1767034241775,-1382.8095471,0.00024142,2]
[400024271,1767034241786,-15324.73589633,0.00024142,2]
[400024272,1767034241797,-4897.25569245,0.00024142,2]
[400024273,1767034241808,-302.0,0.00024142,2]
[400024274,1767034241823,-890.79079948,0.00024142,2]
[400024275,1767034241946,-3e-08,0.00018641,2]
[400024276,1767034241963,-1041.66666664,0.00018641,2]
[400024277,1767034241973,-395.63079341,0.00021917,2]
[400024278,1767034241983,-1863.19642131,0.0002298,10]
[400024279,1767034241996,-825.6962295,0.0002298,10]
[400024280,1767034242010,-2913.70734919,0.0002298,10]
[400024281,1767034242019,-15100.87225264,0.00024142,2]
[400024282,1767034242030,-254.01130894,0.00024142,2]
[400024283,1767034242040,-1553.17549407,0.00024142,2]
[400024298,1767034245074,-322.49688883,0.00023689,2]
[400024299,1767034245084,-322.49688877,0.00023728,2]
[400024300,1767034245094,-5343.10968031,0.00024142,2]
[400024318,1767034246191,-322.49688877,0.00023767,2]
[400024319,1767034246202,-322.49688877,0.00023807,2]
[400024320,1767034246211,-15928.37452814,0.00024142,2]
[400024321,1767034246245,-802.84844993,0.00024142,2]
[400024322,1767034246257,-3117.69709019,0.00024142,2]
[400024324,1767034277406,500.0,0.00028493,120]
[400024325,1767034277586,500.0,0.0002863,120]
[400024326,1767034277759,500.0,0.00028767,120]
[400024327,1767034391206,200.83276119,0.00025386,120]
[400024328,1767034453409,5000.0,0.00013172,2]
[400024329,1767034464751,160.75,0.00012095,2]
[400024330,1767034465162,241.13,0.00013103,2]
[400024331,1767034540610,150.52,0.00011981,2]
[400024332,1767034541027,225.78,0.00012979,2]
[400024333,1767034618829,211.41,0.00012974,2]
[400024334,1767034681283,5000.0,0.00013172,2]
[400024335,1767034695651,203.34,0.00012977,2]
[400024336,1767034756487,580.7743479,0.00012787,2]
[400024338,1767034770772,195.58,0.00012975,2]
[400024339,1767034845761,188.11,0.00012989,2]
[400024341,1767034909248,5000.0,0.00013172,2]
[400024342,1767034909311,4000.0,0.0001317,2]
[400024343,1767034921170,180.93,0.00012985,2]
[400024344,1767034950421,500.0,0.00028493,120]
[400024345,1767034950577,500.0,0.0002863,120]
[400024346,1767034950760,157.0,0.00028767,120]
[400024347,1767034995561,174.02,0.00012978,2]
[400024348,1767035053450,617.34,0.00012329,2]
[400024349,1767035063886,514.45,0.00012329,2]
[400024350,1767035070346,167.38,0.0001299,2]
[400024351,1767035095751,214.35,0.00012329,2]
[400024352,1767035106194,178.63,0.00012329,2]
[400024353,1767035116653,893.16,0.00012329,2]
[400024354,1767035144913,160.98,0.00011502,2]
[400024355,1767035145341,214.65,0.00012002,2]
[400024356,1767035145770,268.31,0.00012502,2]
[400024357,1767035146157,321.97,0.00013002,2]
[400024358,1767035217639,165.47,0.00012019,2]
[400024359,1767035218035,206.84,0.0001252,2]
[400024360,1767035218441,248.21,0.0001302,2]
[400024482,1767035289523,167.35,0.0001252,2]
[400024483,1767035289918,200.82,0.0001302,2]
[400024484,1767035360490,172.71,0.00013021,2]
[400024485,1767035430315,159.52,0.00013098,2]
[400024522,1767035431987,-500.0,0.00013273,2]
[400024523,1767035431998,-500.0,0.00013273,2]
[400024525,1767035432008,-228.47786453,0.00013598,2]
[400024527,1767035432017,-1385.33486158,0.00013599,2]
[400024528,1767035432040,-997.14197923,0.00013599,2]
[400024529,1767035432052,-1012.78967504,0.00013599,2]
[400024530,1767035432061,-186.11,0.00013602,2]
[400024531,1767035432071,-127.10032496,0.0001367,2]
[400024532,1767035432082,-4872.89967504,0.0001367,2]
[400024533,1767035432092,-300.0,0.00013673,2]
[400024534,1767035432101,-300.0,0.00013694,2]
[400024536,1767035432110,-300.0,0.00013694,2]
[400024538,1767035432120,-300.0,0.00013694,2]
[400024540,1767035432130,-500.0,0.00013695,2]
[400024542,1767035432140,-500.0,0.00013695,2]
[400024544,1767035432149,-504.24841011,0.00013695,2]
[400024545,1767035432159,-36358.57085617,0.00013696,2]
[400024546,1767035432170,-13641.42914383,0.00013696,2]
[400024547,1767035432179,-512.47287,0.00013699,2]
[400024548,1767035432189,-500.0,0.00013699,2]
[400024549,1767035432198,-500.0,0.00013699,2]
[400024550,1767035432207,-500.0,0.00013699,2]
[400024551,1767035432217,-500.0,0.00013699,2]
[400024552,1767035432227,-1000.0,0.00013821,2]
[400024553,1767035432237,-212.69,0.00014106,2]
[400024554,1767035432248,-1000.0,0.00014247,2]
[400024555,1767035432257,-1000.0,0.00014247,2]
[400024556,1767035432266,-1000.0,0.00014247,2]
[400024557,1767035432276,-1000.0,0.00014247,2]
[400024558,1767035432285,-1500.0,0.00014368,2]
[400024559,1767035432294,-239.28,0.0001461,2]
[400024560,1767035432304,-451.60521084,0.00014795,2]
[400024561,1767035432313,-1275.53785009,0.00014795,2]
[400024562,1767035432323,-1500.0,0.00014795,2]
[400024563,1767035432333,-1500.0,0.00014795,2]
[400024564,1767035432342,-903.516935,0.00014916,2]
[400024565,1767035432352,-172.54764,0.00015068,2]
[400024566,1767035432362,-265.87,0.00015113,2]
[400024567,1767035432371,-2000.0,0.00015342,2]
[400024568,1767035432381,-2000.0,0.00015342,2]
[400024569,1767035432390,-177.0,0.00015435,2]
[400024570,1767035432400,-222.17821342,0.00015772,2]
[400024571,1767035432410,-228.07,0.00015789,2]
[400024572,1767035432419,-1164.68859461,0.00015889,2]
[400024573,1767035432429,-2500.0,0.0001589,2]
[400024574,1767035432438,-2500.0,0.0001589,2]
[400024575,1767035432448,-233.82194616,0.00016338,2]
[400024576,1767035432458,-428.71,0.00016428,3]
[400024577,1767035432472,-500.0,0.00016438,2]
[400024578,1767035432482,-500.0,0.00016438,2]
[400024579,1767035432491,-500.0,0.00016438,2]
[400024580,1767035432502,-500.0,0.00016438,2]
[400024581,1767035432513,-500.0,0.00016438,2]
[400024582,1767035432523,-500.0,0.00016438,2]
[400024583,1767035432533,-500.0,0.00016438,2]
[400024584,1767035432543,-500.0,0.00016438,2]
[400024585,1767035432552,-500.0,0.00016438,2]
[400024586,1767035432562,-500.0,0.00016438,2]
[400024587,1767035432571,-500.0,0.00016438,2]
[400024588,1767035432581,-500.0,0.00016438,2]
[400024589,1767035432590,-217.71392873,0.00016438,2]
[400024595,1767035438179,-282.28607127,0.00016438,2]
[400024596,1767035438189,-500.0,0.00016438,2]
[400024597,1767035438199,-500.0,0.00016438,2]
[400024598,1767035438210,-341.75893289,0.00016438,2]
[400024599,1767035438222,-158.24106711,0.00016438,2]
[400024600,1767035438232,-567.14675211,0.00016438,2]
[400024601,1767035438241,-500.0,0.00016438,2]
[400024602,1767035438251,-500.0,0.00016438,2]
[400024603,1767035438261,-500.0,0.00016438,2]
[400024604,1767035438270,-500.0,0.00016438,2]
[400024605,1767035438280,-500.0,0.00016438,2]
[400024607,1767035438290,-500.0,0.00016438,2]
[400024608,1767035438300,-500.0,0.00016438,2]
[400024609,1767035438310,-500.0,0.00016438,2]
[400024610,1767035438320,-500.0,0.00016438,2]
[400024611,1767035438330,-500.0,0.00016438,2]
[400024612,1767035438339,-3000.0,0.00016438,2]
[400024613,1767035438349,-3000.0,0.00016438,2]
[400024614,1767035438359,-3500.0,0.00016986,2]
[400024615,1767035438369,-1500.0,0.00016986,2]
[400024616,1767035438379,-3395.26651585,0.00016995,2]
[400024617,1767035438389,-204.0,0.00017435,2]
[400024618,1767035438399,-4000.0,0.00017534,2]
[400024619,1767035438409,-857.42,0.00017798,3]
[400024620,1767035438418,-4500.0,0.00018082,2]
[400024621,1767035438427,-233.82194616,0.00018228,2]
[400024622,1767035438437,-5000.0,0.0001863,2]
[400024623,1767035438446,-1164.68859461,0.00018829,2]
[400024624,1767035438456,-1041.66666667,0.0001886,2]
[400024625,1767035438468,-200.7,0.00019175,2]
[400024626,1767035438478,-500.0,0.00019178,2]
[400024627,1767035438487,-500.0,0.00019178,2]
[400024628,1767035438497,-500.0,0.00019178,2]
[400024629,1767035438509,-500.0,0.00019178,2]
[400024630,1767035438519,-500.0,0.00019178,2]
[400024631,1767035438528,-500.0,0.00019178,2]
[400024632,1767035438538,-500.0,0.00019178,2]
[400024633,1767035438547,-500.0,0.00019178,2]
[400024634,1767035438556,-500.0,0.00019178,2]
[400024635,1767035438566,-386.68,0.00019178,2]
[400024636,1767035438575,-5500.0,0.00019178,2]
[400024637,1767035438586,-163.17,0.000192,2]
[400024638,1767035438595,-157.42,0.000192,2]
[400024639,1767035438605,-231.0,0.00019435,2]
[400024640,1767035438615,-159.0,0.00019671,3]
[400024641,1767035438624,-200.7,0.00019977,2]
[400024642,1767035438634,-233.82194616,0.00020118,2]
[400024643,1767035438644,-512.47287,0.00020187,2]
[400024644,1767035438653,-222.17821342,0.00020212,2]
[400024645,1767035438662,-3395.26651585,0.0002039,2]
[400024646,1767035438672,-200.7,0.0002078,2]
[400024647,1767035438681,-156.78044487,0.00020999,5]
[400024648,1767035438690,-3000.0,0.00021,2]
[400024649,1767035438699,-10000.0,0.00021,2]
[400024650,1767035438709,-3000.0,0.0002101,2]
[400024651,1767035438719,-3000.0,0.0002102,2]
[400024652,1767035438729,-3000.0,0.0002103,2]
[400024653,1767035438738,-3000.0,0.0002104,2]
[400024654,1767035438748,-3000.0,0.0002105,2]
[400024655,1767035438757,-3000.0,0.0002106,2]
[400024656,1767035438767,-3000.0,0.0002107,2]
[400024657,1767035438777,-3000.0,0.0002108,2]
[400024658,1767035438786,-3000.0,0.0002109,2]
[400024659,1767035438796,-3000.0,0.000211,2]
[400024660,1767035438806,-3000.0,0.0002111,2]
[400024661,1767035438816,-3000.0,0.0002112,2]
[400024662,1767035438825,-3000.0,0.0002113,2]
[400024663,1767035438835,-3000.0,0.0002114,2]
[400024664,1767035438845,-3000.0,0.0002115,2]
[400024665,1767035438854,-3000.0,0.0002116,2]
[400024666,1767035438864,-3000.0,0.0002117,2]
[400024667,1767035438873,-3000.0,0.0002118,2]
[400024668,1767035438883,-3000.0,0.0002119,2]
[400024669,1767035438892,-3000.0,0.000212,2]
[400024670,1767035438902,-1918.97,0.000212,2]
[400024671,1767035438913,-3000.0,0.0002121,2]
[400024672,1767035438922,-3000.0,0.0002122,2]
[400024673,1767035438932,-3000.0,0.0002123,2]
[400024674,1767035438942,-3000.0,0.0002124,2]
[400024675,1767035438951,-3000.0,0.0002125,2]
[400024676,1767035438961,-3000.0,0.0002126,2]
[400024677,1767035438971,-3000.0,0.0002127,2]
[400024678,1767035438981,-3000.0,0.0002128,2]
[400024679,1767035438990,-3000.0,0.0002129,2]
[400024680,1767035439000,-3000.0,0.000213,2]
[400024681,1767035439009,-3000.0,0.0002131,2]
[400024682,1767035439019,-3000.0,0.0002132,2]
[400024683,1767035439029,-3000.0,0.0002133,2]
[400024684,1767035439039,-3000.0,0.0002134,2]
[400024685,1767035439048,-4430.540845,0.0002135,2]
[400024686,1767035439058,-258.0,0.00021435,2]
[400024687,1767035439067,-200.7,0.00021582,2]
[400024688,1767035439077,-1164.68859461,0.00021769,2]
[400024689,1767035439087,-11401.86,0.00021891,3]
[400024690,1767035439097,-834.77,0.00021917,2]
[400024691,1767035439107,-500.0,0.00021917,2]
[400024692,1767035439116,-418.56912658,0.00021917,2]
[400024693,1767035439126,-384.42284736,0.00021917,2]
[400024694,1767035439136,-570.03107926,0.00021917,2]
[400024695,1767035439145,-359.62185946,0.00021917,2]
[400024696,1767035439160,-276.66865437,0.00021917,2]
[400024697,1767035439175,-203.72,0.00021917,2]
[400024698,1767035439185,-500.0,0.00021917,2]
[400024699,1767035439195,-298.66749138,0.00021917,2]
[400024700,1767035439205,-391.47361695,0.00021917,2]
[400024701,1767035439216,-500.0,0.00021917,2]
[400024702,1767035439227,-500.0,0.00021917,2]
[400024703,1767035439238,-500.0,0.00021917,2]
[400024704,1767035439249,-500.0,0.00021917,2]
[400024705,1767035439258,-500.0,0.00021917,2]
[400024706,1767035439268,-500.0,0.00021917,2]
[400024707,1767035439278,-500.0,0.00021917,2]
[400024708,1767035439289,-681.08,0.00021917,2]
[400024709,1767035439298,-500.0,0.00021917,2]
[400024710,1767035439308,-500.0,0.00021917,2]
[400024711,1767035439318,-1880.32844308,0.00021917,2]
[400024712,1767035439328,-576.25541193,0.00021917,2]
[400024713,1767035439338,-314.94131652,0.00021917,2]
[400024714,1767035439348,-1000.0,0.00021917,2]
[400024715,1767035439359,-500.0,0.00021917,2]
[400024716,1767035439369,-500.0,0.00021917,2]
[400024717,1767035439379,-295.24883752,0.00021917,2]
[400024718,1767035439389,-497.36160661,0.00021917,2]
[400024719,1767035439399,-500.0,0.00021917,2]
[400024720,1767035439411,-500.0,0.00021917,2]
[400024721,1767035439422,-3397.24,0.00021917,2]
[400024722,1767035439431,-506.61072878,0.00021917,2]
[400024723,1767035439441,-438.32011162,0.00021917,2]
[400024724,1767035439451,-582.92938711,0.00021917,2]
[400024725,1767035439460,-500.0,0.00021917,2]
[400024726,1767035439475,-500.0,0.00021917,2]
[400024727,1767035439484,-500.0,0.00021917,2]
[400024728,1767035439494,-500.0,0.00021917,2]
[400024729,1767035439505,-500.0,0.00021917,2]
[400024730,1767035439515,-500.0,0.00021917,2]
[400024731,1767035439525,-445.55316345,0.00021917,2]
[400024732,1767035439535,-500.0,0.00021917,2]
[400024733,1767035439546,-500.0,0.00021917,2]
[400024734,1767035439556,-1000.0,0.00021917,2]
[400024735,1767035439565,-193.714378,0.00021917,2]
[400024736,1767035439575,-542.22,0.00021917,2]
[400024737,1767035439584,-518.97313957,0.00021917,2]
[400024738,1767035439593,-422.86389252,0.00021917,2]
[400024739,1767035439603,-183.63537504,0.00021917,2]
[400024740,1767035439613,-500.0,0.00021917,2]
[400024741,1767035439623,-500.0,0.00021917,2]
[400024742,1767035439633,-543.12,0.00021917,2]
[400024743,1767035439642,-766.4,0.00021917,2]
[400024744,1767035439652,-961.61,0.00021917,2]
[400024745,1767035439662,-521.16197729,0.00021917,2]
[400024746,1767035439671,-500.0,0.00021917,2]
[400024747,1767035439681,-500.0,0.00021917,2]
[400024748,1767035439849,-465.31557181,0.00021917,2]
[400024749,1767035439860,-500.0,0.00021917,2]
[400024750,1767035439870,-500.0,0.00021917,2]
[400024751,1767035439879,-500.0,0.00021917,2]
[400024752,1767035439889,-1095.97,0.00021917,2]
[400024753,1767035439899,-500.0,0.00021917,2]
[400024755,1767035439909,-1065.99,0.00021917,2]
[400024756,1767035439918,-574.98627618,0.00021917,2]
[400024757,1767035439927,-500.0,0.00021917,2]
[400024758,1767035439937,-500.0,0.00021917,2]
[400024759,1767035439946,-500.0,0.00021925,2]
[400024760,1767035439959,-21688.79131837,0.0002199,2]
[400024761,1767035439969,-1508.85,0.00022,7]
[400024762,1767035439978,-286.0,0.00022,2]
[400024763,1767035439987,-233.82194616,0.00022008,2]
[400024764,1767035439997,-151.0,0.000221,5]
[400024765,1767035440008,-834.77,0.00022191,2]
[400024766,1767035440017,-500.0,0.00022191,2]
[400024767,1767035440027,-197.8086957,0.00022191,2]
[400024768,1767035440037,-500.0,0.00022191,2]
[400024769,1767035440046,-500.0,0.00022191,2]
[400024770,1767035440057,-500.0,0.00022191,2]
[400024771,1767035440069,-500.0,0.00022191,2]
[400024772,1767035440078,-500.0,0.00022191,2]
[400024773,1767035440088,-500.0,0.00022191,2]
[400024774,1767035440098,-500.0,0.00022191,2]
[400024775,1767035440108,-681.08,0.00022191,2]
[400024776,1767035440118,-500.0,0.00022191,2]
[400024777,1767035440129,-500.0,0.00022191,2]
[400024778,1767035440138,-1880.32844308,0.00022191,2]
[400024779,1767035440148,-1000.0,0.00022191,2]
[400024780,1767035440158,-500.0,0.00022191,2]
[400024781,1767035440168,-500.0,0.00022191,2]
[400024782,1767035440179,-500.0,0.00022191,2]
[400024783,1767035440188,-500.0,0.00022191,2]
[400024784,1767035440197,-3397.24,0.00022191,2]
[400024785,1767035440207,-500.0,0.00022191,2]
[400024786,1767035440216,-500.0,0.00022191,2]
[400024787,1767035440226,-500.0,0.00022191,2]
[400024788,1767035440235,-500.0,0.00022191,2]
[400024789,1767035440244,-500.0,0.00022191,2]
[400024790,1767035440254,-500.0,0.00022191,2]
[400024791,1767035440263,-500.0,0.00022191,2]
[400024792,1767035440273,-188.36476689,0.00022191,2]
[400024793,1767035440283,-1000.0,0.00022191,2]
[400024794,1767035440293,-542.22,0.00022191,2]
[400024795,1767035440302,-500.0,0.00022191,2]
[400024796,1767035440313,-500.0,0.00022191,2]
[400024797,1767035440322,-543.12,0.00022191,2]
[400024798,1767035440332,-766.4,0.00022191,2]
[400024799,1767035440341,-961.61,0.00022191,2]
[400024801,1767035440351,-255.67595508,0.00022191,2]
[400024802,1767035440360,-500.0,0.00022191,2]
[400024803,1767035440371,-500.0,0.00022191,2]
[400024804,1767035440380,-500.0,0.00022191,2]
[400024805,1767035440390,-500.0,0.00022191,2]
[400024806,1767035440401,-1095.97,0.00022191,2]
[400024807,1767035440410,-500.0,0.00022191,2]
[400024808,1767035440420,-1065.99,0.00022191,2]
[400024809,1767035440431,-500.0,0.00022191,2]
[400024810,1767035440440,-500.0,0.00022191,2]
[400024811,1767035440452,-286.0,0.00022192,7]
[400024812,1767035440464,-496.47127164,0.00022203,2]
[400024813,1767035440477,-500.0,0.00022203,2]
[400024814,1767035440487,-2398.4119403,0.00022203,2]
[400024815,1767035440496,-500.0,0.00022203,2]
[400024816,1767035440506,-500.0,0.00022293,2]
[400024817,1767035440516,-500.0,0.00022355,2]
[400024818,1767035440526,-500.0,0.00022364,2]
[400024819,1767035440536,-639.0,0.00022366,2]
[400024821,1767035440546,-1364.0,0.00022366,2]
[400024823,1767035440555,-2160.0,0.00022366,2]
[400024824,1767035440564,-416.0,0.00022384,2]
[400024825,1767035440574,-200.7,0.00022384,2]
[400024826,1767035440583,-500.0,0.00022388,2]
[400024827,1767035440592,-165.0,0.00022411,7]
[400024828,1767035440602,-834.77,0.00022465,2]
[400024829,1767035440611,-500.0,0.00022465,2]
[400024830,1767035440620,-302.10028417,0.00022465,2]
[400024831,1767035440630,-500.0,0.00022465,2]
[400024832,1767035440642,-500.0,0.00022465,2]
[400024833,1767035440651,-500.0,0.00022465,2]
[400024834,1767035440661,-681.08,0.00022465,2]
[400024835,1767035440671,-528.70018131,0.00022465,2]
[400024836,1767035440680,-500.0,0.00022465,2]
[400024837,1767035440690,-1880.32844308,0.00022465,2]
[400024838,1767035440699,-1000.0,0.00022465,2]
[400024839,1767035440708,-584.07655682,0.00022465,2]
[400024840,1767035440718,-500.0,0.00022465,2]
[400024841,1767035440727,-3397.24,0.00022465,2]
[400024842,1767035440737,-500.0,0.00022465,2]
[400024843,1767035440748,-500.0,0.00022465,2]
[400024844,1767035440759,-506.77058064,0.00022465,2]
[400024845,1767035440768,-500.0,0.00022465,2]
[400024846,1767035440778,-500.0,0.00022465,2]
[400024847,1767035440787,-507.77725803,0.00022465,2]
[400024848,1767035440796,-1000.0,0.00022465,2]
[400024849,1767035440806,-542.22,0.00022465,2]
[400024850,1767035440815,-500.0,0.00022465,2]
[400024851,1767035440824,-543.12,0.00022465,2]
[400024852,1767035440833,-766.4,0.00022465,2]
[400024853,1767035440843,-961.61,0.00022465,2]
[400024854,1767035440853,-208.25775335,0.00022465,2]
[400024855,1767035440863,-500.0,0.00022465,2]
[400024856,1767035440872,-500.0,0.00022465,2]
[400024857,1767035440883,-1095.97,0.00022465,2]
[400024858,1767035440892,-1065.99,0.00022465,2]
[400024859,1767035440902,-500.0,0.00022465,2]
[400024860,1767035440911,-500.0,0.00022465,2]
[400024861,1767035440921,-500.0,0.00022643,2]
[400024862,1767035440932,-500.0,0.00022649,2]
[400024863,1767035440941,-6615.55679995,0.000227,2]
[400024864,1767035440952,-834.77,0.00022739,2]
[400024865,1767035440961,-500.0,0.00022739,2]
[400024866,1767035440971,-500.0,0.00022739,2]
[400024867,1767035440980,-610.22451559,0.00022739,2]
[400024868,1767035440990,-500.0,0.00022739,2]
[400024869,1767035440999,-681.08,0.00022739,2]
[400024870,1767035441011,-500.0,0.00022739,2]
[400024871,1767035441020,-1880.32844308,0.00022739,2]
[400024872,1767035441030,-500.0,0.00022739,2]
[400024873,1767035441039,-3397.24,0.00022739,2]
[400024874,1767035441049,-500.0,0.00022739,2]
[400024875,1767035441059,-500.0,0.00022739,2]
[400024876,1767035441068,-500.0,0.00022739,2]
[400024877,1767035441078,-1000.0,0.00022739,2]
[400024878,1767035441087,-542.22,0.00022739,2]
[400024879,1767035441097,-500.0,0.00022739,2]
[400024880,1767035441106,-543.12,0.00022739,2]
[400024881,1767035441116,-766.4,0.00022739,2]
[400024882,1767035441125,-961.61,0.00022739,2]
[400024883,1767035441135,-500.0,0.00022739,2]
[400024884,1767035441144,-500.0,0.00022739,2]
[400024885,1767035441154,-1095.97,0.00022739,2]
[400024886,1767035441163,-1065.99,0.00022739,2]
[400024887,1767035441172,-500.0,0.00022739,2]
[400024888,1767035441181,-500.0,0.00022739,2]
[400024889,1767035441190,-514.84070869,0.00022751,2]
[400024890,1767035441199,-2487.15318209,0.00022751,2]
[400024891,1767035441208,-500.0,0.0002277,2]
[400024892,1767035441218,-1918.97,0.000228,14]
[400024893,1767035441227,-500.0,0.00022859,2]
[400024894,1767035441236,-163.17,0.000229,7]
[400024895,1767035441245,-157.42,0.000229,7]
[400024896,1767035441255,-834.77,0.00023013,2]
[400024897,1767035441264,-500.0,0.00023013,2]
[400024898,1767035441274,-500.0,0.00023013,2]
[400024899,1767035441284,-500.0,0.00023013,2]
[400024900,1767035441293,-681.08,0.00023013,2]
[400024901,1767035441305,-500.0,0.00023013,2]
[400024902,1767035441315,-1880.32844308,0.00023013,2]
[400024903,1767035441324,-500.0,0.00023013,2]
[400024904,1767035441333,-3397.24,0.00023013,2]
[400024905,1767035441343,-505.58648091,0.00023013,2]